bitfinex-derivatives/quotes_BTCF0:USTF0_20250911
["timestamp","ask_amount","ask_price","bid_price","bid_amount"]
[1757588181319,0.84045474,114110.0,114100.0,0.40257988]
[1757588181507,0.97734023,114110.0,114100.0,0.40257988]
[1757588182013,0.97734023,114110.0,114100.0,0.17807549]
[1757588182208,0.84045474,114110.0,114100.0,0.04119]
[1757588182412,0.97734023,114110.0,114100.0,0.17807549]
[1757588182612,0.97734023,114110.0,114100.0,0.04119]
[1757588182914,0.97734023,114110.0,114100.0,0.17807549]
[1757588185616,0.97734023,114110.0,114100.0,0.04119]
[1757588185812,0.97734023,114110.0,114100.0,0.17807549]
[1757588187112,0.97734023,114110.0,114100.0,0.28832515]
[1757588188819,0.97734023,114110.0,114100.0,0.17807549]
[1757588189712,0.97734023,114110.0,114100.0,0.28832518]
[1757588191218,0.97734023,114110.0,114100.0,0.37594418]
[1757588191421,0.97734023,114110.0,114100.0,0.26569449]
[1757588191919,0.97734023,114110.0,114100.0,0.37594319]
[1757588192718,0.97734023,114110.0,114100.0,0.26569449]
[1757588192911,0.84045474,114110.0,114100.0,0.26569449]
[1757588193111,0.97734023,114110.0,114100.0,0.26569449]
[1757588196117,0.97730023,114110.0,114100.0,0.26569449]
[1757588196316,0.84041474,114110.0,114100.0,0.26569449]
[1757588196517,0.97730023,114110.0,114100.0,0.26569449]
[1757588197423,0.97730023,114110.0,114100.0,0.37594319]
[1757588199521,0.84041474,114110.0,114100.0,0.51282868]
[1757588199720,0.97730023,114110.0,114100.0,0.51282868]
[1757588201225,0.97730023,114110.0,114100.0,0.5128265]
[1757588202527,0.84041474,114110.0,114100.0,0.5128265]
[1757588202826,0.97730023,114110.0,114100.0,0.5128265]
[1757588203928,0.97730023,114110.0,114100.0,0.23905552]
[1757588204130,0.97730023,114110.0,114100.0,0.51282636]
[1757588204430,0.84041474,114110.0,114100.0,0.51282636]
[1757588204727,0.97730023,114110.0,114100.0,0.51282636]
[1757588207532,0.97730023,114110.0,114100.0,0.37594087]
[1757588208730,0.97730023,114110.0,114100.0,0.51282636]
[1757588209431,0.04305474,114110.0,114100.0,0.51282636]
[1757588209730,0.84041474,114110.0,114100.0,1.11282636]
[1757588210228,0.84041474,114110.0,114100.0,0.51282636]
[1757588210532,0.97730023,114110.0,114100.0,0.51282636]
[1757588212131,0.9769087,114110.0,114100.0,0.51282646]
[1757588213223,0.9769087,114110.0,114100.0,0.88594097]
[1757588213729,0.9769087,114110.0,114100.0,0.66143638]
[1757588213928,0.9769087,114110.0,114100.0,0.74905548]
[1757588214128,0.9769087,114110.0,114100.0,0.88594097]
[1757588214329,0.9769087,114110.0,114100.0,0.93594097]
[1757588214630,0.9769087,114110.0,114100.0,0.82569459]
[1757588215629,0.97664816,114110.0,114100.0,0.82569459]
[1757588215827,0.97664816,114110.0,114100.0,0.93593723]
[1757588216634,0.97664816,114110.0,114100.0,0.82569459]
[1757588218438,0.93102433,114110.0,114100.0,0.78007076]
[1757588219238,0.93102433,114110.0,114100.0,0.89031302]
[1757588221531,0.93102433,114110.0,114100.0,0.33031302]
[1757588221728,0.93102433,114110.0,114100.0,0.13824226]
[1757588222133,0.93102433,114110.0,114100.0,0.028]
[1757588222333,0.93102433,114110.0,114100.0,0.006]
[1757588222535,1.27228599,114110.0,114100.0,0.006]
[1757588224440,0.38366433,114110.0,114100.0,0.006]
[1757588224642,1.18098433,114110.0,114100.0,0.006]
[1757588225841,0.38366433,114110.0,114100.0,0.0287]
[1757588226146,1.18098433,114110.0,114100.0,0.0287]
[1757588228641,1.18098433,114110.0,114100.0,0.006]
[1757588229642,1.18102433,114110.0,114100.0,0.006]
[1757588230244,0.13366433,114110.0,114100.0,0.11996166]
[1757588230548,0.83976267,114110.0,114100.0,0.13295166]
[1757588238150,0.93102433,114110.0,114100.0,0.13295166]
[1757588241046,0.83976267,114110.0,114100.0,0.31183242]
[1757588241256,0.83976267,114110.0,114100.0,0.22057076]
[1757588241449,0.83976267,114110.0,114100.0,0.42207468]
[1757588241649,0.83976267,114110.0,114100.0,0.33081302]
[1757588243154,0.83976267,114110.0,114100.0,0.22057076]
[1757588244956,0.83976267,114110.0,114100.0,0.33081302]
[1757588248055,0.83976267,114110.0,114100.0,0.24319392]
[1757588248250,0.83976267,114110.0,114100.0,0.13295166]
[1757588249061,0.93102433,114110.0,114100.0,0.24319392]
[1757588249961,0.83976267,114110.0,114100.0,0.24319392]
[1757588250463,0.93102433,114110.0,114100.0,0.24319392]
[1757588252763,0.83976267,114110.0,114100.0,0.33081302]
[1757588253464,0.83976267,114110.0,114100.0,0.22057076]
[1757588254867,0.83976267,114110.0,114100.0,0.13295166]
[1757588255776,0.83976267,114110.0,114100.0,0.24319392]
[1757588257072,0.83976267,114110.0,114100.0,0.89183242]
[1757588257270,0.83976267,114110.0,114100.0,0.80057076]
[1757588257471,0.83976267,114110.0,114100.0,1.00207468]
[1757588257674,0.83976267,114110.0,114100.0,0.33081302]
[1757588257865,0.83976267,114110.0,114100.0,0.42207468]
[1757588259878,0.83976267,114110.0,114100.0,0.33081302]
[1757588261773,0.83976267,114110.0,114100.0,0.22057076]
[1757588262676,0.83976267,114110.0,114100.0,0.33081302]
[1757588264370,0.83976267,114110.0,114100.0,0.15193226]
[1757588264576,0.83976267,114110.0,114100.0,0.24319392]
[1757588266877,0.93102433,114110.0,114100.0,0.24319392]
[1757588267178,0.83976267,114110.0,114100.0,0.24319392]
[1757588267376,0.93102433,114110.0,114100.0,0.24319392]
[1757588267677,0.83976267,114110.0,114100.0,0.15193226]
[1757588267880,0.83976267,114110.0,114100.0,0.24319392]
[1757588268976,0.83976267,114110.0,114100.0,0.15193226]
[1757588269177,0.83976267,114110.0,114100.0,0.24319392]
[1757588269370,0.83976267,114110.0,114100.0,0.13295166]
[1757588271871,0.83976267,114110.0,114100.0,0.11996166]
[1757588272066,0.93102433,114110.0,114100.0,0.11996166]
[1757588272279,0.83976267,114110.0,114100.0,0.11996166]
[1757588272484,0.93102433,114110.0,114100.0,0.11996166]
[1757588273182,0.83976267,114110.0,114100.0,0.11996166]
[1757588273384,0.93102433,114110.0,114100.0,0.0287]
[1757588274785,0.93102433,114110.0,114100.0,0.11996166]
[1757588275378,0.93106433,114110.0,114100.0,0.11996166]
[1757588277188,0.93106433,114110.0,114100.0,0.23020392]
[1757588277985,0.93106433,114110.0,114100.0,0.11624226]
[1757588278381,0.97670952,114110.0,114100.0,0.14290685]
[1757588278883,0.97670952,114110.0,114100.0,0.006]
[1757588279089,0.97670952,114110.0,114100.0,0.14290685]
[1757588279278,0.97670952,114110.0,114100.0,0.006]
[1757588279478,0.83980267,114110.0,114100.0,0.006]
[1757588279989,0.97670952,114110.0,114100.0,0.14290685]
[1757588280282,1.11361637,114110.0,114100.0,0.006]
[1757588280488,1.36361637,114110.0,114100.0,0.006]
[1757588281884,0.56625637,114110.0,114100.0,0.006]
[1757588282087,1.36861637,114110.0,114100.0,0.006]
[1757588282587,1.09480267,114110.0,114100.0,0.006]
[1757588282789,0.42934952,114110.0,114100.0,0.006]
[1757588282988,1.23194952,114110.0,114100.0,0.006]
[1757588284392,1.23214952,114110.0,114100.0,0.006]
[1757588284790,1.36905637,114110.0,114100.0,0.006]
[1757588290400,1.36981637,114110.0,114100.0,0.006]
[1757588291794,0.42934952,114110.0,114100.0,0.006]
[1757588292092,1.23274952,114110.0,114100.0,0.16515685]
[1757588293491,1.09580267,114110.0,114100.0,0.16515685]
[1757588293792,1.23270952,114110.0,114100.0,0.16515685]
[1757588294495,1.23258952,114110.0,114100.0,0.16515685]
[1757588294696,1.23246952,114110.0,114100.0,0.16515685]
[1757588295495,0.42934952,114110.0,114100.0,0.16515685]
[1757588295697,1.23246952,114110.0,114100.0,0.16515685]
[1757588296793,1.23234952,114110.0,114100.0,0.16515685]
[1757588297996,1.23234952,114110.0,114100.0,0.02825]
[1757588300694,1.23234952,114110.0,114100.0,0.006]
[1757588303802,0.29244267,114110.0,114100.0,0.02795]
[1757588304002,1.23178952,114110.0,114100.0,0.02795]
[1757588304393,1.09488267,114110.0,114100.0,0.02795]
[1757588304594,1.23178952,114110.0,114100.0,0.02795]
[1757588305804,1.23178952,114110.0,114100.0,0.006]
[1757588306201,1.09488267,114110.0,114100.0,0.006]
[1757588306402,1.23178952,114110.0,114100.0,0.006]
[1757588306907,1.23178952,114110.0,114100.0,0.02795]
[1757588307602,1.09488267,114110.0,114100.0,0.02795]
[1757588307809,1.23178952,114110.0,114100.0,0.02795]
[1757588309903,1.09488267,114110.0,114100.0,0.02795]
[1757588310103,1.23178952,114110.0,114100.0,0.006]
[1757588312607,1.23178952,114110.0,114100.0,0.02795]
[1757588313607,1.23178952,114110.0,114100.0,0.006]
[1757588314410,1.23178952,114110.0,114100.0,0.02795]
[1757588315310,1.23178952,114110.0,114100.0,0.006]
[1757588315500,0.29244267,114110.0,114100.0,0.02795]
[1757588315702,1.23082952,114110.0,114100.0,0.02795]
[1757588315898,1.09392267,114110.0,114100.0,0.02795]
[1757588316106,1.23082952,114110.0,114100.0,0.006]
[1757588316708,1.09392267,114110.0,114100.0,0.006]
[1757588316908,1.09392267,114110.0,114100.0,0.02795]
[1757588316909,1.23082952,114110.0,114100.0,0.02795]
[1757588317307,1.09392267,114110.0,114100.0,0.02795]
[1757588317509,1.23082952,114110.0,114100.0,0.006]
[1757588317904,1.23082952,114110.0,114100.0,0.02795]
[1757588318309,1.23082952,114110.0,114100.0,0.006]
[1757588319309,0.98082952,114110.0,114100.0,0.02795]
[1757588320110,0.98082952,114110.0,114100.0,0.006]
[1757588320410,0.98082952,114110.0,114100.0,0.02795]
[1757588320913,0.98082952,114110.0,114100.0,0.006]
[1757588324316,0.98082952,114110.0,114100.0,0.02795]
[1757588325716,0.98082952,114110.0,114100.0,0.006]
[1757588326218,0.98082952,114110.0,114100.0,0.02795]
[1757588326921,0.98082952,114110.0,114100.0,0.006]
[1757588334120,0.84392267,114110.0,114100.0,0.006]
[1757588334319,0.98082952,114110.0,114100.0,0.006]
[1757588334819,0.97966952,114110.0,114100.0,0.006]
[1757588335728,0.97966952,114110.0,114100.0,0.02741]
[1757588336025,0.17934952,114110.0,114100.0,0.02741]
[1757588336212,0.97954952,114110.0,114100.0,0.02741]
[1757588337619,0.84264267,114110.0,114100.0,0.02741]
[1757588338020,0.95946685,114110.0,114100.0,0.02741]
[1757588339429,0.95946685,114110.0,114100.0,0.006]
[1757588340324,0.91383923,114110.0,114100.0,0.006]
[1757588340629,0.91383923,114110.0,114100.0,0.02741]
[1757588341025,0.91383923,114110.0,114100.0,0.006]
[1757588342227,0.91383923,114110.0,114100.0,0.02741]
[1757588342728,0.91383923,114110.0,114100.0,0.006]
[1757588350334,0.11363923,114110.0,114100.0,0.02741]
[1757588350638,0.91323923,114110.0,114100.0,0.02741]
[1757588352138,0.91323923,114110.0,114100.0,0.13765226]
[1757588352337,0.02236,114110.0,114100.0,0.13765226]
[1757588352527,0.82176,114110.0,114100.0,0.13765226]
[1757588352728,0.91303923,114110.0,114100.0,0.13765226]
[1757588352938,0.91303923,114110.0,114100.0,0.02741]
[1757588356445,0.82176,114110.0,114100.0,0.02741]
[1757588356740,0.91303923,114110.0,114100.0,0.02741]
[1757588359443,0.91303923,114110.0,114100.0,0.006]
[1757588359633,0.91303923,114110.0,114100.0,0.02741]
[1757588370252,0.91303923,114110.0,114100.0,0.006]
[1757588370552,0.91303923,114110.0,114100.0,0.02926]
[1757588371254,0.91191923,114110.0,114100.0,0.02926]
[1757588371553,0.82064,114110.0,114100.0,0.02926]
[1757588371751,0.91191923,114110.0,114100.0,0.02926]
[1757588383856,0.09222163,114120.0,114110.0,0.1247922]
[1757588384069,0.02142,114120.0,114110.0,0.72607143]
[1757588384364,0.02142,114120.0,114110.0,0.22483143]
[1757588384661,0.02142,114120.0,114110.0,0.33488631]
[1757588384862,0.02142,114120.0,114110.0,0.22483143]
[1757588385258,0.81966,114120.0,114110.0,0.22483143]
[1757588385458,0.81966,114120.0,114110.0,0.22683143]
[1757588385658,0.89070762,114120.0,114110.0,0.22683143]
[1757588386061,0.89070762,114120.0,114110.0,0.22883143]
[1757588386758,0.89070762,114120.0,114110.0,0.33878744]
[1757588389262,0.89070762,114120.0,114110.0,0.22883143]
[1757588389462,0.89070762,114120.0,114110.0,0.80883143]
[1757588389862,0.89070762,114120.0,114110.0,0.22883143]
[1757588391072,0.89070762,114120.0,114110.0,0.80883143]
[1757588394273,0.89070762,114120.0,114110.0,0.91878744]
[1757588397380,0.89070762,114120.0,114110.0,0.80883143]
[1757588397584,0.89070762,114120.0,114110.0,0.91878744]
[1757588399166,0.89070762,114120.0,114110.0,0.25117524]
[1757588399381,0.98198685,114120.0,114110.0,0.25117524]
[1757588399672,1.33007608,114120.0,114110.0,0.09118777]
[1757588399874,1.33007608,114120.0,114110.0,0.09120741]
[1757588400276,1.14751762,114120.0,114110.0,0.09120741]
[1757588400581,1.42131328,114120.0,114110.0,0.09120741]
[1757588401974,1.42131328,114120.0,114110.0,0.01276]
[1757588402176,1.55821111,114120.0,114100.0,0.07844741]
[1757588402371,0.29687566,114110.0,114100.0,0.07844741]
[1757588403280,0.29687566,114110.0,114090.0,0.07844741]
[1757588403477,0.29687566,114100.0,114090.0,0.10167741]
[1757588403681,1.09487566,114100.0,114090.0,0.10167741]
[1757588403876,1.09487566,114100.0,114090.0,0.23857524]
[1757588404078,1.09487566,114100.0,114090.0,0.16012783]
[1757588404482,1.09487566,114100.0,114090.0,0.27008384]
[1757588405075,1.09487566,114100.0,114090.0,0.28370384]
[1757588405271,1.09487566,114100.0,114090.0,0.17374783]
[1757588405476,0.29687566,114100.0,114090.0,0.17374783]
[1757588405672,0.16097783,114100.0,114090.0,0.17574783]
[1757588405981,0.95897783,114100.0,114090.0,0.17774783]
[1757588407087,0.82208,114100.0,114090.0,0.17774783]
[1757588407286,0.95897783,114100.0,114090.0,0.17774783]
[1757588407486,0.82208,114100.0,114090.0,0.17774783]
[1757588407686,0.95897783,114100.0,114090.0,0.25624859]
[1757588408386,0.95897783,114100.0,114090.0,0.11935076]
[1757588408585,0.16097783,114100.0,114090.0,0.11935076]
[1757588408887,0.95901783,114100.0,114090.0,0.25624859]
[1757588409285,0.95901783,114100.0,114090.0,0.11935076]
[1757588409487,0.95901783,114100.0,114090.0,0.25624859]
[1757588410488,1.09591566,114100.0,114090.0,0.25624859]
[1757588411692,1.09591566,114100.0,114090.0,0.17774783]
[1757588411991,0.95905783,114100.0,114090.0,0.17774783]
[1757588415093,0.16101783,114100.0,114090.0,0.17774783]
[1757588415395,0.82212,114100.0,114090.0,0.17774783]
[1757588415796,0.95901783,114100.0,114090.0,0.17774783]
[1757588415983,0.82212,114100.0,114090.0,0.17774783]
[1757588416590,0.95901783,114100.0,114090.0,0.17774783]
[1757588416791,0.02412,114100.0,114090.0,0.2562554]
[1757588416995,0.95901783,114100.0,114090.0,0.2562554]
[1757588417196,0.95901783,114100.0,114090.0,0.17774783]
[1757588417699,0.82212,114100.0,114090.0,0.04085]
[1757588417892,0.95901783,114100.0,114090.0,0.17774783]
[1757588418092,0.95901783,114100.0,114090.0,0.04085]
[1757588418501,0.95901783,114100.0,114090.0,0.17774783]
[1757588418704,0.95901783,114100.0,114090.0,0.04085]
[1757588419000,0.95901783,114100.0,114090.0,0.17774783]
[1757588419402,0.95901783,114100.0,114090.0,0.28770384]
[1757588420200,0.95901783,114100.0,114090.0,0.17774783]
[1757588420395,0.82212,114100.0,114090.0,0.17774783]
[1757588420603,0.95901783,114100.0,114090.0,0.17774783]
[1757588420994,0.95901783,114100.0,114090.0,0.15080601]
[1757588421303,1.09591566,114100.0,114090.0,0.28770384]
[1757588422099,0.02412,114100.0,114090.0,0.37533144]
[1757588422297,0.95901783,114100.0,114090.0,0.36625494]
[1757588422498,0.95901783,114100.0,114090.0,0.25629893]
[1757588423104,1.09591566,114100.0,114090.0,0.25629893]
[1757588423399,0.95901783,114100.0,114090.0,0.25629893]
[1757588423903,0.95901783,114100.0,114090.0,0.28770384]
[1757588424296,1.09591566,114100.0,114090.0,0.28770384]
[1757588425403,1.09591566,114100.0,114090.0,0.37533124]
[1757588426705,0.29791566,114100.0,114090.0,0.37533124]
[1757588426905,0.95897783,114100.0,114090.0,0.37533124]
[1757588428304,0.95897783,114100.0,114090.0,0.26537523]
[1757588429298,0.95897783,114100.0,114090.0,0.37554756]
[1757588429805,0.95897783,114100.0,114090.0,0.26537523]
[1757588430106,0.95897783,114100.0,114090.0,0.37564548]
[1757588432710,0.95897783,114100.0,114090.0,0.26537523]
[1757588434211,0.95897783,114100.0,114090.0,0.37568655]
[1757588437011,0.95897783,114100.0,114090.0,0.23878872]
[1757588437513,0.95897783,114100.0,114090.0,0.37568655]
[1757588437812,0.95897783,114100.0,114090.0,0.26537523]
[1757588438311,0.95897783,114100.0,114090.0,0.27413523]
[1757588440416,1.09587566,114100.0,114090.0,0.04961]
[1757588440615,1.09587566,114100.0,114090.0,0.18650783]
[1757588440918,1.09587566,114100.0,114090.0,0.27413523]
[1757588441215,1.09587566,114100.0,114090.0,0.38444252]
[1757588441604,1.10260566,114100.0,114090.0,0.01276]
[1757588441809,1.10260566,114100.0,114090.0,0.25996461]
[1757588442013,1.10260566,114100.0,114090.0,0.34759191]
[1757588442427,1.10260566,114100.0,114090.0,0.36880191]
[1757588442925,1.10260566,114100.0,114090.0,0.25849513]
[1757588447425,1.09587566,114100.0,114090.0,0.25849513]
[1757588447623,1.09587566,114100.0,114090.0,0.27238513]
[1757588448635,1.09587566,114100.0,114090.0,0.38265285]
[1757588451333,1.09587566,114100.0,114090.0,0.29502555]
[1757588451534,1.09587566,114100.0,114090.0,0.38265425]
[1757588452225,1.09587566,114100.0,114090.0,0.27238653]
[1757588452629,1.09587566,114100.0,114090.0,0.1354887]
[1757588452830,1.09587566,114100.0,114090.0,0.27238653]
[1757588453134,1.09587566,114100.0,114090.0,0.1354887]
[1757588453327,1.09587566,114100.0,114090.0,0.04786]
[1757588453523,1.5029,114100.0,114090.0,0.12301896]
[1757588453731,1.5029,114100.0,114090.0,0.06179797]
[1757588453936,1.5029,114100.0,114090.0,0.03947797]
[1757588454434,1.5029,114100.0,114090.0,0.01268]
[1757588455228,0.70494,114100.0,114090.0,0.01268]
[1757588455537,1.5027,114100.0,114090.0,0.01368]
[1757588456835,1.5017,114100.0,114090.0,0.01468]
[1757588458234,1.50174,114100.0,114090.0,0.01468]
[1757588458638,3.26926,114100.0,114090.0,0.01468]
[1757588459031,2.47146,114100.0,114090.0,0.01468]
[1757588459336,3.26926,114100.0,114090.0,0.01468]
[1757588460642,2.47146,114100.0,114090.0,0.01468]
[1757588460939,3.26926,114100.0,114090.0,0.01468]
[1757588461337,2.85856651,114100.0,114090.0,0.01468]
[1757588461643,3.13236217,114100.0,114090.0,0.01468]
[1757588462035,1.81076651,114100.0,114090.0,0.42358783]
[1757588462240,2.60856651,114100.0,114090.0,0.42358783]
[1757588462538,1.81076651,114100.0,114090.0,0.46559778]
[1757588462840,2.60856651,114100.0,114090.0,0.54415822]
[1757588463039,2.60856651,114100.0,114090.0,0.46559778]
[1757588463244,2.60856651,114100.0,114090.0,0.3743175]
[1757588463440,2.60856651,114100.0,114090.0,0.54415687]
[1757588464538,2.60852651,114100.0,114090.0,0.54415687]
[1757588464732,1.81076651,114100.0,114090.0,0.54415687]
[1757588464934,1.78768651,114100.0,114090.0,0.6541933]
[1757588465243,0.81792651,114100.0,114090.0,0.57563421]
[1757588465450,0.81792651,114100.0,114090.0,0.46559778]
[1757588466643,0.81792651,114100.0,114090.0,0.57563421]
[1757588467131,0.02016651,114100.0,114090.0,0.57563421]
[1757588467339,0.81788651,114100.0,114090.0,1.20691449]
[1757588467538,0.02016651,114100.0,114090.0,1.09687806]
[1757588467738,4e-05,114100.0,114090.0,1.09687806]
[1757588468846,0.79772,114110.0,114100.0,0.0876208]
[1757588469049,0.79772,114110.0,114100.0,0.95479521]
[1757588469346,0.79772,114110.0,114100.0,0.77223465]
[1757588469548,0.88900028,114110.0,114100.0,0.14461385]
[1757588470238,0.89200028,114110.0,114100.0,0.14461385]
[1757588471137,0.80072,114110.0,114100.0,0.14461385]
[1757588471341,0.89200028,114110.0,114100.0,0.14461385]
[1757588472142,0.89200028,114110.0,114100.0,0.11319981]
[1757588472650,1.23328056,114110.0,114100.0,0.09118981]
[1757588472848,1.23328056,114110.0,114100.0,0.01268]
[1757588473251,1.23328056,114110.0,114100.0,0.09118981]
[1757588473752,1.23328056,114110.0,114100.0,0.01268]
[1757588474648,1.14200028,114110.0,114100.0,0.01268]
[1757588474952,1.23328056,114110.0,114100.0,0.01268]
[1757588476344,1.14200028,114110.0,114100.0,0.01268]
[1757588480041,1.14200028,114110.0,114100.0,0.09118981]
[1757588481152,0.34428028,114110.0,114100.0,0.11319981]
[1757588481349,1.14196028,114110.0,114100.0,0.03469]
[1757588481747,1.05068,114110.0,114100.0,0.03469]
[1757588481946,1.14196028,114110.0,114100.0,0.03469]
[1757588485156,0.34428028,114110.0,114100.0,0.03469]
[1757588485452,1.14192028,114110.0,114100.0,0.11319981]
[1757588485850,0.34428028,114110.0,114100.0,0.03469]
[1757588486057,1.14192028,114110.0,114100.0,0.03469]
[1757588486448,1.14192028,114110.0,114100.0,0.11319981]
[1757588486652,0.34428028,114110.0,114100.0,0.11319981]
[1757588486853,1.14192028,114110.0,114100.0,0.11319981]
[1757588487053,1.14192028,114110.0,114100.0,0.03469]
[1757588487253,1.14192028,114110.0,114100.0,0.11319981]
[1757588487655,1.14192028,114110.0,114100.0,0.03469]
[1757588488960,1.05064,114110.0,114100.0,0.12597028]
[1757588489258,0.80064,114110.0,114100.0,0.12597028]
[1757588489759,0.89192028,114110.0,114100.0,0.12597028]
[1757588490160,0.89192028,114110.0,114100.0,0.20448009]
[1757588490860,0.09428028,114110.0,114100.0,0.20448009]
[1757588491062,0.89192028,114110.0,114100.0,0.20448009]
[1757588492352,0.89192028,114110.0,114100.0,0.12597028]
[1757588492560,0.89192028,114110.0,114100.0,0.20460604]
[1757588492757,0.89192028,114110.0,114100.0,0.11332576]
[1757588492964,0.89192028,114110.0,114100.0,0.03469]
[1757588494258,0.89192028,114110.0,114100.0,0.11333279]
[1757588494456,0.89192028,114110.0,114100.0,0.03469]
[1757588494960,0.89192028,114110.0,114100.0,0.11333281]
[1757588501157,0.89192028,114110.0,114100.0,0.03469]
[1757588501465,0.89192028,114110.0,114100.0,0.14461385]
[1757588502968,0.89192028,114110.0,114100.0,0.03469]
[1757588503661,0.89192028,114110.0,114100.0,0.11338198]
[1757588504966,0.89192028,114110.0,114100.0,0.03469]
[1757588505160,0.89192028,114110.0,114100.0,0.14461385]
[1757588506774,0.98320056,114110.0,114100.0,0.12260385]
[1757588507265,1.23320056,114110.0,114100.0,0.09137738]
[1757588507661,1.23320056,114110.0,114100.0,0.01268]
[1757588509373,1.32448084,114110.0,114100.0,0.01268]
[1757588509572,1.23320056,114110.0,114100.0,0.01268]
[1757588518676,1.23320056,114110.0,114100.0,0.00506009]
[1757588521776,1.32448084,114110.0,114100.0,0.00506009]
[1757588522377,1.46146603,114110.0,114100.0,0.00506009]
[1757588524068,1.46159557,114110.0,114090.0,0.01268]
[1757588524270,0.41095557,114100.0,114090.0,0.01268]
[1757588524474,1.56422657,114100.0,114090.0,0.01268]
[1757588524682,0.76658657,114100.0,114090.0,0.01268]
[1757588524874,1.56422657,114100.0,114090.0,0.01268]
[1757588526571,0.76658657,114100.0,114090.0,0.01268]
[1757588526772,1.56422657,114100.0,114090.0,0.01268]
[1757588527182,1.153271,114100.0,114090.0,0.01368]
[1757588527482,1.42724138,114100.0,114090.0,0.01368]
[1757588527676,0.62960138,114100.0,114090.0,0.01368]
[1757588527976,1.42724138,114100.0,114090.0,0.01368]
[1757588528279,0.76658657,114100.0,114090.0,0.01368]
[1757588528472,1.56422657,114100.0,114090.0,0.01368]
[1757588528873,0.76658657,114100.0,114090.0,0.01368]
[1757588529074,1.56422657,114100.0,114090.0,0.01368]
[1757588530277,0.76658657,114100.0,114090.0,0.01368]
[1757588530479,1.56422657,114100.0,114090.0,0.01368]
[1757588531670,0.76658657,114100.0,114090.0,0.01368]
[1757588531983,1.56422657,114100.0,114090.0,0.01368]
[1757588535384,1.69846294,114100.0,114090.0,0.01368]
[1757588537888,0.90082294,114100.0,114090.0,0.01368]
[1757588538080,1.69846294,114100.0,114090.0,0.01368]
[1757588539486,0.90082294,114100.0,114090.0,0.01368]
[1757588539691,1.28750737,114100.0,114090.0,0.01368]
[1757588539988,1.69846294,114100.0,114090.0,0.01368]
[1757588546590,3.46622294,114100.0,114090.0,0.01368]
[1757588551993,3.61172294,114100.0,114090.0,0.01368]
[1757588552190,3.46622294,114100.0,114090.0,0.01368]
[1757588555896,2.66858294,114100.0,114090.0,0.01368]
[1757588556087,3.46614294,114100.0,114090.0,0.01368]
[1757588565392,3.46614294,114100.0,114090.0,0.09237738]
[1757588567306,3.46614294,114100.0,114090.0,0.01368]
[1757588568910,3.46614294,114100.0,114090.0,0.09237738]
[1757588569908,2.66858294,114100.0,114090.0,0.11338738]
[1757588570110,3.46606294,114100.0,114090.0,0.11338738]
[1757588570309,3.05510737,114100.0,114090.0,0.11338738]
[1757588570503,3.32907775,114100.0,114090.0,0.11338738]
[1757588570698,3.32907775,114100.0,114090.0,0.36338738]
[1757588570899,3.05785619,114100.0,114090.0,0.28469]
[1757588571202,2.39736138,114100.0,114090.0,0.28469]
[1757588571402,3.19484138,114100.0,114090.0,0.28469]
[1757588571805,3.19484138,114100.0,114090.0,0.36338738]
[1757588573100,3.19484138,114100.0,114090.0,0.28469]
[1757588573508,2.39736138,114100.0,114090.0,0.28469]
[1757588573711,3.19480138,114100.0,114090.0,0.28469]
[1757588574105,2.920831,114100.0,114090.0,0.42167519]
[1757588574307,3.05781619,114100.0,114090.0,0.50042052]
[1757588575114,3.05781619,114100.0,114090.0,0.42167519]
[1757588575316,3.05781619,114100.0,114090.0,0.61922754]
[1757588575510,3.05781619,114100.0,114090.0,0.39461385]
[1757588575813,3.19480138,114100.0,114090.0,0.53159904]
[1757588576008,3.05781619,114100.0,114090.0,0.53159904]
[1757588576308,3.19480138,114100.0,114090.0,0.53159904]
[1757588576813,3.05781619,114100.0,114090.0,0.39461385]
[1757588577011,3.05781619,114100.0,114090.0,0.53159904]
[1757588577309,3.05781619,114100.0,114090.0,0.42167519]
[1757588577614,3.05781619,114100.0,114090.0,0.5003396]
[1757588578006,2.920831,114100.0,114090.0,0.5003396]
[1757588578205,3.05781619,114100.0,114090.0,0.5003396]
[1757588579015,3.05781619,114100.0,114090.0,0.36335441]
[1757588579411,3.19480138,114100.0,114090.0,0.36335441]
[1757588579914,3.19480138,114100.0,114090.0,0.5003396]
[1757588581707,3.19480138,114100.0,114090.0,0.36335441]
[1757588581903,3.19480138,114100.0,114090.0,0.11335441]
[1757588582107,3.33178657,114100.0,114090.0,0.11335441]
[1757588582413,3.19480138,114100.0,114090.0,0.11335441]
[1757588583214,3.33178657,114100.0,114090.0,0.11335441]
[1757588583719,3.19480138,114100.0,114090.0,0.03469]
[1757588584018,3.19480138,114100.0,114090.0,0.11335441]
[1757588584221,3.33178657,114100.0,114090.0,0.11335441]
[1757588584411,3.10346424,114100.0,114090.0,0.11335441]
[1757588586514,3.10346424,114100.0,114090.0,0.03469]
[1757588586919,1.788279,114100.0,114090.0,0.20467103]
[1757588587122,2.585599,114100.0,114090.0,0.45467103]
[1757588587318,2.67691562,114100.0,114090.0,0.36335441]
[1757588587714,2.585599,114100.0,114090.0,0.36335441]
[1757588587922,2.67691562,114100.0,114090.0,0.36335441]
[1757588588918,2.585599,114100.0,114090.0,0.45467103]
[1757588589523,2.585599,114100.0,114090.0,0.37600662]
[1757588589721,2.585599,114100.0,114090.0,0.45462086]
[1757588589921,0.817839,114100.0,114090.0,0.45462086]
[1757588590922,0.817839,114100.0,114090.0,0.28469]
[1757588591118,0.817839,114100.0,114090.0,0.48593047]
[1757588592324,0.817839,114100.0,114090.0,0.39461385]
[1757588593424,0.90915562,114100.0,114090.0,0.39461385]
[1757588593721,0.90915562,114100.0,114090.0,0.28469]
[1757588593923,0.90915562,114100.0,114090.0,0.39461385]
[1757588594423,0.90915562,114100.0,114090.0,0.28469]
[1757588594922,0.90915562,114100.0,114090.0,0.39461385]
[1757588595123,0.90915562,114100.0,114090.0,0.28469]
[1757588599627,0.90915562,114100.0,114090.0,0.39461385]
[1757588601525,0.817839,114100.0,114090.0,0.39461385]
[1757588601721,0.90915562,114100.0,114090.0,0.39461385]
[1757588603127,1.00047224,114100.0,114090.0,0.14461385]
[1757588604716,1.00047224,114100.0,114090.0,0.03469]
[1757588605326,0.20315224,114100.0,114090.0,0.03469]
[1757588605625,0.11183562,114100.0,114090.0,0.03469]
[1757588605926,0.79439562,114100.0,114090.0,0.03469]
[1757588606228,0.90903562,114100.0,114090.0,0.14461385]
[1757588606421,0.90903562,114100.0,114090.0,0.03469]
[1757588611828,1.00035224,114100.0,114090.0,0.03469]
[1757588613728,1.00035224,114100.0,114090.0,0.11339942]
[1757588613931,1.00035224,114100.0,114090.0,0.03469]
[1757588616531,1.00035224,114100.0,114090.0,0.11339942]
[1757588617132,1.00035224,114100.0,114090.0,0.03469]